bitfinex/quotes_BTCUSD_20230120
["timestamp","ask_amount","ask_price","bid_price","bid_amount"]
[1674246936275,0.0149593,21925.0,21924.0,0.9849011]
[1674246936806,0.0149593,21925.0,21924.0,1.0438575]
[1674246937529,0.0149593,21925.0,21924.0,1.1999785]
[1674246938021,0.0149593,21925.0,21924.0,1.4999785]
[1674246938264,0.0149593,21925.0,21924.0,1.6499785]
[1674246938996,0.0649593,21925.0,21924.0,1.6499785]
[1674246939484,0.0649593,21925.0,21924.0,2.58330119]
[1674246939774,3e-07,21925.0,21924.0,2.6253368]
[1674246940009,0.01557365,21927.0,21924.0,2.6253368]
[1674246940010,0.01557365,21927.0,21925.0,5.97e-05]
[1674246940263,0.01557365,21927.0,21926.0,1.695939]
[1674246940530,0.01557365,21927.0,21926.0,1.78484241]
[1674246941035,0.01557365,21927.0,21926.0,1.93484241]
[1674246941520,0.01578256,21930.0,21927.0,0.15]
[1674246941757,0.01578256,21930.0,21928.0,2.15106669]
[1674246942001,0.01578256,21930.0,21929.0,1.11198469]
[1674246942245,0.01578256,21930.0,21929.0,1.1540203]
[1674246943229,0.01573646,21934.0,21931.0,0.15]
[1674246943492,0.01573646,21934.0,21932.0,1.673558]
[1674246943736,0.31622889,21934.0,21933.0,0.184742]
[1674246943981,0.31622889,21934.0,21930.0,0.45696081]
[1674246943982,0.01573646,21934.0,21930.0,0.45696081]
[1674246944238,0.01573646,21934.0,21930.0,0.91295681]
[1674246944753,0.20075889,21934.0,21931.0,0.327014]
[1674246944997,0.01573646,21934.0,21932.0,0.163448]
[1674246945260,0.01573646,21934.0,21930.0,0.45695981]
[1674246945517,0.01573646,21934.0,21931.0,0.15]
[1674246945754,0.01573646,21934.0,21932.0,1.216245]
[1674246946003,0.01573646,21934.0,21933.0,0.1861]
[1674246946508,0.01573646,21934.0,21932.0,0.455954]
[1674246946993,0.20075889,21934.0,21930.0,0.00097481]
[1674246947294,0.325274,21933.0,21930.0,0.00097481]
[1674246947553,0.319978,21932.0,21930.0,0.00097481]
[1674246947793,0.336739,21931.0,21930.0,0.00097481]
[1674246948040,0.52176143,21931.0,21930.0,0.00097481]
[1674246948282,0.44951144,21931.0,21930.0,0.00097481]
[1674246948823,0.44451144,21931.0,21922.0,0.02200734]
[1674246949080,1.12909112,21930.0,21922.0,0.17200734]
[1674246949323,0.456046,21928.0,21922.0,0.02200734]
[1674246949728,0.51015643,21927.0,21922.0,0.02200734]
[1674246950086,0.30693,21926.0,21922.0,0.02200734]
[1674246950346,0.15,21926.0,21922.0,0.26580561]
[1674246950612,0.18502243,21925.0,21919.0,0.456216]
[1674246950874,0.53131067,21924.0,21918.0,0.15]
[1674246951122,0.66081443,21923.0,21916.0,0.456283]
[1674246951377,0.63306194,21922.0,21915.0,0.606297]
[1674246951632,0.48937843,21921.0,21915.0,0.456297]
[1674246951889,0.18502243,21920.0,21914.0,0.15]
[1674246952162,0.18502243,21919.0,21912.0,0.46186087]
[1674246952431,0.18502243,21918.0,21912.0,0.46186087]
[1674246952672,0.18502243,21917.0,21912.0,0.00549487]
[1674246952924,0.18502243,21916.0,21912.0,0.15549487]
[1674246953741,0.51707309,21920.0,21911.0,0.37990801]
[1674246953961,0.49810243,21919.0,21912.0,0.15]
[1674246954266,0.49810243,21919.0,21912.0,0.15519283]
[1674246954523,0.18502243,21918.0,21912.0,0.45519283]
[1674246955012,0.18502243,21918.0,21912.0,0.68622531]
[1674246955268,0.18502243,21917.0,21909.0,0.456431]
[1674246955533,0.49553743,21916.0,21909.0,0.456431]
[1674246955785,0.18502243,21915.0,21910.0,0.15]
[1674246956298,0.15,21919.0,21911.0,0.456381]
[1674246956552,0.33502243,21919.0,21911.0,0.456381]
[1674246956807,0.58010567,21919.0,21913.0,0.15]
[1674246957063,0.39508324,21919.0,21913.0,0.15]
[1674246957337,0.18502243,21918.0,21910.0,3.02766203]
[1674246957594,0.33502243,21917.0,21911.0,0.3]
[1674246957839,0.18502243,21916.0,21911.0,0.756383]
[1674246958112,0.2740846,21917.0,21911.0,0.756383]
[1674246958371,0.18502243,21916.0,21911.0,0.456383]
[1674246958640,0.25138396,21916.0,21911.0,0.456383]
[1674246958922,0.25138396,21916.0,21911.0,2.87764403]
[1674246959172,0.18502243,21916.0,21911.0,2.87764403]
[1674246959427,0.18502243,21916.0,21912.0,0.30929]
[1674246959708,1.0534,21921.0,21913.0,0.336649]
[1674246960011,0.18502243,21921.0,21915.0,0.4563]
[1674246960265,0.18502243,21921.0,21916.0,0.186616]
[1674246960525,0.01850224,21920.0,21916.0,2.42126103]
[1674246960778,0.15,21918.0,21916.0,2.42126103]
[1674246961033,0.309811,21917.0,21916.0,2.42126103]
[1674246961316,0.456215,21920.0,21916.0,2.42126103]
[1674246961603,2.3221,21924.0,21917.0,0.310456]
[1674246961866,0.62124,21927.0,21917.0,0.310456]
[1674246961867,1.37919,21926.0,21918.0,0.791596]
[1674246962128,0.0819415,21925.0,21918.0,0.606238]
[1674246962393,0.05380315,21924.0,21918.0,0.606238]
[1674246962878,0.23882558,21924.0,21918.0,0.456238]
[1674246962879,0.15,21923.0,21918.0,0.606238]
[1674246963156,0.15,21925.0,21919.0,0.3]
[1674246963413,0.15,21925.0,21920.0,0.323279]
[1674246963662,0.15,21925.0,21919.0,2.87747003]
[1674246963930,0.33502243,21925.0,21920.0,0.14912016]
[1674246964182,0.15,21926.0,21920.0,0.14912016]
[1674246964428,0.33502243,21926.0,21920.0,0.14912016]
[1674246964689,0.9231,21929.0,21920.0,1.36151716]
[1674246964942,1.10812243,21929.0,21921.0,0.470885]
[1674246965242,1.10812243,21929.0,21922.0,0.456148]
[1674246965480,0.18502243,21929.0,21922.0,0.456148]
[1674246965714,0.15,21931.0,21923.0,0.45]
[1674246965970,0.18502243,21931.0,21924.0,0.768974]
[1674246966220,6e-05,21930.0,21925.0,0.3]
[1674246966501,6e-05,21930.0,21926.0,1.222132]
[1674246966761,6e-05,21930.0,21927.0,0.635592]
[1674246967016,6e-05,21930.0,21928.0,0.309963]
[1674246967270,6e-05,21930.0,21929.0,0.485573]
[1674246967790,6e-05,21930.0,21929.0,0.635573]
[1674246969115,6e-05,21930.0,21929.0,0.335573]
[1674246969589,6e-05,21930.0,21929.0,0.635573]
[1674246970594,0.01573646,21934.0,21930.0,0.15000584]
[1674246970846,0.01573646,21934.0,21931.0,0.309919]
[1674246971098,0.00210477,21936.0,21932.0,0.641494]
[1674246971367,0.00210477,21936.0,21932.0,0.455954]
[1674246972405,0.00210477,21936.0,21931.0,0.605967]
[1674246972663,0.00210477,21936.0,21933.0,0.15]
[1674246972931,0.00210477,21936.0,21934.0,0.17757]
[1674246973188,0.00210477,21936.0,21933.0,0.605927]
[1674246973446,0.1871272,21936.0,21933.0,0.455927]
[1674246973709,0.00210477,21936.0,21931.0,0.455961]
[1674246973973,0.1871272,21936.0,21931.0,0.455961]
[1674246974238,0.51216715,21935.0,21930.0,5.84e-06]
[1674246974494,0.49664943,21934.0,21930.0,5.84e-06]
[1674246974749,0.15,21933.0,21930.0,5.84e-06]
[1674246975004,0.48995343,21932.0,21930.0,5.84e-06]
[1674246975261,0.314723,21931.0,21930.0,5.84e-06]
[1674246975588,0.49974543,21931.0,21930.0,5.84e-06]
[1674246975774,0.42529154,21931.0,21930.0,5.84e-06]
[1674246976282,0.314723,21931.0,21930.0,5.84e-06]
[1674246977107,0.00210477,21936.0,21930.0,5.84e-06]
[1674246977379,0.00210477,21936.0,21931.0,0.769447]
[1674246977652,0.00210477,21936.0,21931.0,0.455972]
[1674246977909,0.18502243,21935.0,21930.0,5.84e-06]
[1674246978223,0.457866,21934.0,21930.0,5.84e-06]
[1674246978502,0.328204,21933.0,21930.0,5.84e-06]
[1674246978770,0.18502243,21934.0,21929.0,0.36938417]
[1674246979025,0.18502243,21934.0,21930.0,0.15]
[1674246979283,0.15210477,21936.0,21930.0,0.15]
[1674246979563,0.00210477,21936.0,21930.0,0.605986]
[1674246979839,0.1871272,21936.0,21931.0,0.15]
[1674246980101,0.00210477,21936.0,21931.0,0.15]
[1674246980627,0.1871272,21936.0,21930.0,0.605986]
[1674246980961,0.49434443,21935.0,21930.0,0.455986]
[1674246981217,0.309258,21934.0,21929.0,0.36938417]
[1674246981474,0.18502243,21934.0,21929.0,0.36938417]
[1674246981709,0.00210477,21936.0,21930.0,0.15]
[1674246981971,0.00210477,21936.0,21931.0,0.77848]
[1674246982247,0.00210477,21936.0,21932.0,0.321717]
[1674246982503,0.00210477,21936.0,21931.0,0.22406222]
[1674246982740,0.1871272,21936.0,21932.0,1.232227]
[1674246982979,0.1871272,21936.0,21933.0,0.169156]
[1674246982980,0.00210477,21936.0,21933.0,0.169156]
[1674246983220,0.00210477,21936.0,21934.0,0.455913]
[1674246983702,0.00210477,21936.0,21931.0,0.22406222]
[1674246983945,0.1871272,21936.0,21932.0,0.3]
[1674246984187,0.00210477,21936.0,21932.0,0.455948]
[1674246984662,0.1871272,21936.0,21932.0,0.455948]
[1674246984920,0.00210477,21936.0,21932.0,0.455948]
[1674246985947,0.00210477,21936.0,21933.0,0.3]
[1674246986212,0.00210477,21936.0,21934.0,1.837034]
[1674246986456,0.00210477,21936.0,21935.0,0.47609]
[1674246986694,0.00210477,21936.0,21935.0,0.62609]
[1674246986941,0.00210477,21936.0,21935.0,0.71016122]
[1674246987179,0.00210477,21936.0,21935.0,0.66812561]
[1674246987672,0.0695,21938.0,21936.0,0.00013047]
[1674246987921,0.0695,21938.0,21937.0,0.305916]
[1674246988176,0.0695,21938.0,21937.0,0.605916]
[1674246988424,0.0695,21938.0,21937.0,1.68896769]
[1674246988663,0.01578256,21939.0,21937.0,1.7310033]
[1674246988914,0.01578256,21939.0,21938.0,0.96659569]
[1674246989157,5.6e-07,21939.0,21938.0,1.87825569]
[1674246989413,0.01636831,21943.0,21938.0,1.87825569]
[1674246989414,0.01636831,21943.0,21939.0,0.15]
[1674246989651,0.01636831,21943.0,21940.0,2.15042469]
[1674246989890,0.01636831,21943.0,21941.0,0.18936]
[1674246990142,0.01636831,21943.0,21942.0,1.217334]
[1674246990378,0.01636831,21943.0,21942.0,1.67308]
[1674246991444,0.00054903,21946.0,21943.0,0.15172069]
[1674246991685,0.00054903,21946.0,21944.0,1.100742]
[1674246993143,0.00054903,21946.0,21944.0,1.550742]
[1674246993389,0.00054903,21946.0,21944.0,2.02794369]
[1674246993921,0.00054903,21946.0,21944.0,3.4461843]
[1674246994214,0.00054903,21946.0,21944.0,3.1461843]
[1674246994488,0.00054903,21946.0,21944.0,2.83108261]
[1674246994737,0.00054903,21946.0,21944.0,3.13108261]
[1674246994979,0.00054903,21946.0,21944.0,3.6082843]
[1674246995246,0.00054903,21946.0,21944.0,3.8361343]
[1674246995467,0.00054903,21946.0,21944.0,3.13108261]
[1674246995715,0.00054903,21946.0,21944.0,3.6082843]
[1674246995972,0.00054903,21946.0,21944.0,2.83108261]
[1674246996217,0.00054903,21946.0,21944.0,3.13108261]
[1674246996727,0.00054903,21946.0,21944.0,2.83114261]
[1674246996975,0.00054903,21946.0,21944.0,2.789167]
[1674246997224,0.20130686,21945.0,21944.0,1.262962]
[1674246997473,0.01628443,21945.0,21944.0,1.262962]
[1674246997962,0.01628443,21945.0,21944.0,1.02090386]
[1674246998215,0.01628443,21945.0,21944.0,1.32666586]
[1674246998710,0.00054903,21946.0,21945.0,0.05883986]
[1674246998983,0.00054903,21946.0,21945.0,0.98604155]
[1674246999248,0.04393246,21951.0,21946.0,0.15]
[1674246999509,0.04393246,21951.0,21947.0,1.366896]
[1674246999755,0.0166144,21954.0,21948.0,0.605756]
[1674247000008,0.0166144,21954.0,21949.0,0.911194]
[1674247000283,0.0166144,21954.0,21950.0,0.305723]
[1674247000503,0.00753751,21952.0,21950.0,0.455571]
[1674247001002,0.00753751,21952.0,21949.0,0.455597]
[1674247001265,0.19255994,21952.0,21946.0,0.45566]
[1674247001517,0.18502243,21951.0,21946.0,0.45566]
[1674247001767,0.50122443,21950.0,21945.0,0.455794]
[1674247002011,0.51537443,21949.0,21945.0,0.455794]
[1674247002262,0.15,21947.0,21945.0,0.00012]
[1674247002513,0.319313,21946.0,21945.0,0.00012]
[1674247003272,0.318497,21946.0,21945.0,0.00012]
[1674247003797,0.330902,21946.0,21945.0,0.00012]
[1674247004060,0.00753751,21952.0,21945.0,0.55549961]
[1674247004299,0.19255994,21952.0,21946.0,0.305791]
[1674247004552,0.19255994,21952.0,21945.0,0.04209561]
[1674247004553,0.21608665,21952.0,21945.0,0.04209561]
[1674247004805,0.22774261,21951.0,21945.0,0.04209561]
[1674247005064,0.18502243,21950.0,21945.0,6e-05]
[1674247005294,0.66004443,21949.0,21943.0,0.00090069]
[1674247005563,0.52984343,21948.0,21943.0,0.00090069]
[1674247005817,0.50307243,21947.0,21943.0,0.00090069]
[1674247006066,0.324189,21946.0,21943.0,0.00090069]
[1674247006304,0.460582,21945.0,21943.0,0.00090069]
[1674247006550,0.15,21949.0,21943.0,0.00090069]
[1674247006803,0.93502243,21949.0,21943.0,0.00090069]
[1674247007049,0.327889,21948.0,21943.0,0.00090069]
[1674247007293,0.482116,21947.0,21944.0,0.455704]
[1674247007548,0.1,21947.0,21944.0,0.455704]
[1674247007805,0.15,21949.0,21944.0,0.455704]
[1674247008063,0.33502243,21949.0,21943.0,0.00090069]
[1674247008303,0.52249743,21948.0,21943.0,0.00090069]
[1674247008565,0.327052,21947.0,21943.0,0.45662569]
[1674247008823,0.15,21949.0,21943.0,0.45662569]
[1674247009075,0.20642961,21949.0,21944.0,0.18502243]
[1674247009578,0.29002264,21949.0,21944.0,0.18502243]
[1674247009857,0.306555,21948.0,21944.0,0.18502243]
[1674247010106,0.468452,21947.0,21943.0,0.00490069]
[1674247010389,0.315951,21946.0,21943.0,0.00490069]
[1674247010613,0.33360718,21947.0,21943.0,0.00490069]
[1674247010614,0.309604,21945.0,21943.0,0.00490069]
[1674247010868,0.33360718,21947.0,21943.0,0.00490069]
[1674247011114,0.312938,21946.0,21943.0,0.00490069]
[1674247011359,0.15,21947.0,21943.0,0.00090069]
[1674247011607,0.15,21947.0,21944.0,0.004]
[1674247011857,0.06882243,21949.0,21944.0,0.18502243]
[1674247012111,0.06882243,21949.0,21945.0,0.18502243]
[1674247012353,0.046,21947.0,21946.0,0.64068543]
[1674247012603,0.15,21950.0,21946.0,0.305793]
[1674247012856,0.15,21950.0,21946.0,0.18502243]
[1674247012857,0.046,21949.0,21946.0,0.18502243]
[1674247013113,0.15,21950.0,21946.0,0.18502243]
[1674247013360,0.15,21950.0,21946.0,0.18902243]
[1674247013361,0.046,21947.0,21946.0,0.18902243]
[1674247013603,0.046,21947.0,21946.0,0.004]
[1674247013845,0.15,21950.0,21945.0,0.455673]
[1674247014111,0.33360718,21950.0,21945.0,0.18502243]
[1674247014371,0.318725,21949.0,21943.0,0.00090069]
[1674247014635,0.37936093,21950.0,21943.0,0.00090069]
[1674247014636,0.49292018,21948.0,21943.0,0.00090069]
[1674247014885,0.49824618,21947.0,21943.0,0.00090069]
[1674247015161,0.15,21946.0,21945.0,0.004]
[1674247015417,0.15,21946.0,21941.0,0.94500069]
[1674247015647,0.50919318,21945.0,21943.0,0.004]
[1674247015899,0.22960718,21948.0,21942.0,0.64075843]
[1674247016137,0.046,21946.0,21945.0,0.004]
[1674247016386,0.046,21946.0,21945.0,0.517389]
[1674247016647,0.03692,21949.0,21945.0,0.360502]
[1674247016891,0.03692,21949.0,21945.0,0.24246243]
[1674247017137,0.03692,21949.0,21946.0,1.217106]
[1674247017400,0.03692,21949.0,21947.0,0.33502243]
[1674247017652,0.03692,21949.0,21948.0,0.76138]
[1674247017900,0.03692,21949.0,21944.0,0.45569]
[1674247018161,0.22052718,21949.0,21945.0,0.15]
[1674247018415,0.03692,21949.0,21946.0,0.455659]
[1674247018656,0.03692,21949.0,21947.0,0.305771]
[1674247018657,0.08292,21949.0,21947.0,0.305771]
[1674247018904,0.03692,21949.0,21946.0,0.455659]
[1674247019153,0.08292,21949.0,21947.0,1.211407]
[1674247019401,0.00753751,21952.0,21949.0,0.00417221]
[1674247019651,0.00753751,21952.0,21950.0,0.305728]
[1674247019908,0.00753751,21952.0,21950.0,0.18502243]
[1674247020168,0.00753751,21952.0,21951.0,0.301397]
[1674247020421,0.00753751,21952.0,21951.0,1.212517]
[1674247021169,0.04953751,21952.0,21951.0,1.212517]
[1674247021413,0.00753751,21952.0,21951.0,1.212517]
[1674247021654,0.04953751,21952.0,21951.0,1.216517]
[1674247021911,0.00753751,21952.0,21951.0,1.202517]
[1674247022157,0.00753751,21952.0,21951.0,0.750957]
[1674247022158,0.04953751,21952.0,21951.0,0.750957]
[1674247022408,0.00753751,21952.0,21951.0,1.93695112]
[1674247022666,0.10893248,21970.0,21953.0,0.06111]
[1674247022934,0.00318544,21975.0,21964.0,0.22764]
[1674247023233,0.0005481,21979.0,21967.0,1.09546643]
[1674247023497,0.0005481,21979.0,21968.0,0.18502243]
[1674247023744,0.15,21976.0,21969.0,0.18502243]
[1674247024189,0.18360718,21975.0,21970.0,0.18502243]
[1674247024192,1.26080887,21975.0,21969.0,0.18502243]
[1674247024446,1.26080887,21975.0,21970.0,0.18502243]
[1674247024447,0.311244,21974.0,21970.0,0.18502243]
[1674247024705,0.318029,21973.0,21966.0,0.35376243]
[1674247024970,0.31291,21972.0,21967.0,0.44292107]
[1674247025231,0.18360718,21972.0,21967.0,0.6279435]
[1674247025520,0.15,21974.0,21967.0,0.6279435]
[1674247025783,0.32960718,21974.0,21968.0,0.33502243]
[1674247026047,0.146,21974.0,21969.0,1.19550843]
[1674247026305,0.18360718,21974.0,21969.0,1.09542243]
[1674247026904,0.07090099,21976.0,21969.0,1.09542243]
[1674247026907,0.07090099,21976.0,21970.0,0.1235225]
[1674247027182,0.07090099,21976.0,21971.0,0.61058595]
[1674247027453,0.043,21974.0,21972.0,0.43095119]
[1674247027716,0.0005481,21979.0,21973.0,0.910206]
[1674247028005,0.043,21976.0,21974.0,0.37543186]
[1674247028276,0.0004019,21979.0,21976.0,0.00542986]
[1674247028533,0.15,21985.0,21977.0,1.46267555]
[1674247028808,0.15,21985.0,21980.0,0.22748]
[1674247029060,0.01512578,21993.0,21981.0,1.91741755]
[1674247029319,0.00054825,21997.0,21983.0,0.22744]
[1674247029590,0.00054825,21997.0,21990.0,0.42700178]
[1674247029852,0.15,21993.0,21992.0,0.454708]
[1674247030131,0.15,21993.0,21988.0,0.06877355]
[1674247030396,0.15,21993.0,21987.0,0.45153734]
[1674247030397,0.310928,21992.0,21987.0,0.45153734]
[1674247030866,0.49558643,21991.0,21987.0,0.45481]
[1674247030869,0.18502243,21991.0,21984.0,0.618552]
[1674247031130,0.52821567,21990.0,21984.0,0.454862]
[1674247031413,0.52821567,21990.0,21981.0,0.604921]
[1674247031414,0.99322812,21989.0,21981.0,0.604921]
[1674247031694,1.99495293,21988.0,21987.0,0.007]
[1674247032011,1.99495293,21988.0,21976.0,0.16848986]
[1674247032012,0.22340001,21985.0,21980.0,0.06877355]
[1674247032243,0.49379043,21984.0,21976.0,0.00542986]
[1674247032511,0.51080343,21983.0,21976.0,0.00542986]
[1674247032780,0.97775912,21982.0,21974.0,6e-05]
[1674247033036,0.49707443,21981.0,21974.0,6e-05]
[1674247033540,0.97082212,21980.0,21976.0,0.001]
[1674247033544,1.88075412,21980.0,21976.0,0.001]
[1674247033799,1.27746312,21979.0,21976.0,0.002]
[1674247034070,1.87751412,21978.0,21970.0,0.06896355]
[1674247034328,1.87751412,21978.0,21974.0,0.001]
[1674247034329,0.98041612,21977.0,21974.0,0.001]
[1674247034609,1.240121,21976.0,21967.0,0.23000355]
[1674247034860,0.49410943,21975.0,21968.0,0.0732253]
[1674247035118,0.18502243,21974.0,21968.0,0.06877355]
[1674247035390,0.18502243,21973.0,21967.0,0.54968166]
[1674247035646,0.1601,21976.0,21964.0,0.45529]
[1674247035647,0.20352467,21972.0,21964.0,0.45529]
[1674247035921,0.20352467,21972.0,21958.0,0.617526]
[1674247035922,0.50604343,21971.0,21961.0,0.455339]
[1674247036214,0.72068524,21970.0,21961.0,0.52411255]
[1674247036477,0.51494643,21969.0,21962.0,0.06849355]
[1674247036727,0.18502243,21968.0,21963.0,0.455307]
[1674247036988,0.6916309,21977.0,21964.0,0.15]
[1674247036989,0.18502243,21972.0,21964.0,0.15]
[1674247037277,0.01,21970.0,21966.0,0.9102]
[1674247037539,0.01937394,21979.0,21968.0,0.2276]
[1674247037799,0.01937394,21979.0,21971.0,1.365417]
[1674247038077,0.01937394,21979.0,21972.0,0.69134189]
[1674247038349,0.01937394,21979.0,21975.0,0.47720169]
[1674247038819,0.01937394,21979.0,21976.0,0.84134189]
[1674247038822,0.01937394,21979.0,21976.0,1.75113589]
[1674247039050,15.1584,21990.0,21979.0,0.47495392]
[1674247039051,14.8395612,21990.0,21979.0,0.47495392]
[1674247039276,14.8395612,21990.0,21986.0,0.22713]
[1674247039506,14.1413902,21990.0,21989.0,0.47692169]
[1674247039727,14.1413902,21990.0,21989.0,1.4500459]
[1674247039728,13.42533273,21990.0,21989.0,1.4500459]
[1674247039981,13.05461402,21990.0,21989.0,1.7497659]
[1674247040242,13.05561402,21990.0,21989.0,1.38562569]
[1674247040491,13.05561402,21990.0,21989.0,1.94442328]
[1674247040742,13.05361402,21990.0,21989.0,2.12552328]
[1674247041010,13.05261402,21990.0,21989.0,0.909544]
[1674247041269,13.05361402,21990.0,21989.0,0.992544]
[1674247041527,13.05361402,21990.0,21989.0,1.68344366]
[1674247041790,13.05461402,21990.0,21989.0,0.97524197]
[1674247042313,13.36379802,21990.0,21989.0,0.50114231]
[1674247042797,13.05261402,21990.0,21989.0,0.47720169]
[1674247042799,13.05361402,21990.0,21989.0,1.46974569]
[1674247043054,13.05261402,21990.0,21989.0,0.909544]
[1674247043308,12.58133202,21990.0,21989.0,1.39374569]
[1674247043569,12.35043702,21990.0,21989.0,0.909604]
[1674247043823,12.35943702,21990.0,21989.0,1.69380569]
[1674247044089,11.62051802,21990.0,21989.0,2.17490569]
[1674247044346,11.62951802,21990.0,21989.0,1.9626834]
[1674247044606,11.62951802,21990.0,21989.0,1.223664]
[1674247044861,11.62951802,21990.0,21989.0,1.40086569]
[1674247045118,11.62951802,21990.0,21989.0,2.1438434]
[1674247045378,11.09968002,21990.0,21989.0,1.40086569]
[1674247045634,10.86151002,21990.0,21989.0,1.16876671]
[1674247045891,10.86151002,21990.0,21989.0,1.31245998]
[1674247046158,10.53459321,21990.0,21989.0,1.76326381]
[1674247046684,1.43492882,21990.0,21989.0,1.86915963]
[1674247046686,0.01937394,21994.0,21989.0,1.86915963]
[1674247046687,0.01937394,21994.0,21990.0,3.30475]
[1674247046937,0.25,21999.0,21990.0,3.30475]
[1674247046938,9.4e-07,21999.0,21993.0,0.70450169]
[1674247047199,0.15,22010.0,22005.0,0.47720169]
[1674247047463,0.00025,22022.0,22012.0,0.0474]
[1674247047760,0.51322316,22036.0,22012.0,0.0474]
[1674247047761,0.07835779,22040.0,22021.0,0.82692]
[1674247048025,0.10613026,22040.0,22039.0,0.22687]
[1674247048290,0.18973948,22038.0,22030.0,0.6]
[1674247048559,0.16973948,22038.0,22032.0,0.453885]
[1674247048818,0.14473948,22038.0,22015.0,0.15]
[1674247049083,0.36850656,22031.0,22022.0,0.15]
[1674247049343,0.15,22029.0,22022.0,0.0985029]
[1674247049612,0.313974,22028.0,22022.0,0.0985029]
[1674247049882,0.313974,22028.0,22014.0,0.15024]
[1674247049883,0.318672,22027.0,22013.0,0.59586641]
[1674247050146,0.318672,22027.0,22016.0,1.0]
[1674247050147,0.31443,22026.0,22016.0,1.0]
[1674247050452,1.43332258,22025.0,22005.0,9.0]
[1674247050709,0.75,22023.0,22008.0,0.1495]
[1674247050970,0.75,22023.0,21984.0,7.5]
[1674247050971,0.14127,22018.0,22006.0,1.0]
[1674247051230,0.14127,22010.0,22006.0,0.57864227]
[1674247051483,0.14127,22007.0,22001.0,0.00019]
[1674247051760,0.45447315,22004.0,22001.0,0.00019]
[1674247052067,0.03550001,22008.0,22005.0,1.0811]
[1674247052334,0.0357,22018.0,22007.0,0.4811]
[1674247052597,1.2626672,22026.0,22017.0,0.4811]
[1674247052598,0.454077,22023.0,22017.0,0.4811]
[1674247052854,0.15,22026.0,22022.0,0.6]
[1674247053381,0.15,22026.0,22022.0,0.14679]
[1674247053383,0.15,22026.0,22025.0,0.6]
[1674247053642,0.15,22026.0,22014.0,0.6]
[1674247053643,0.60447315,22026.0,22014.0,0.6]
[1674247053917,0.60447315,22026.0,21997.0,0.909194]
[1674247053918,0.45447315,22021.0,22006.0,0.6]
[1674247054182,0.325394,22020.0,22008.0,0.28893662]
[1674247054466,0.45447315,22021.0,22008.0,0.28893662]
[1674247054467,1.362612,22017.0,22008.0,0.28893662]
[1674247054727,0.615105,22016.0,22009.0,0.4811]
[1674247054983,1.362774,22014.0,22010.0,0.4811]
[1674247055250,0.317225,22013.0,22012.0,0.4811]
[1674247055514,0.80083219,22013.0,22007.0,0.6]
[1674247055785,0.80083219,22013.0,22004.0,0.14306]
[1674247055786,1.81761129,22012.0,22005.0,0.4811]
[1674247056050,0.68981432,22011.0,22007.0,0.4811]
[1674247056312,1.70037119,22010.0,22007.0,0.4811]
[1674247056598,0.304119,22009.0,22007.0,0.4811]
[1674247056877,0.304119,22009.0,22001.0,0.6]
[1674247056878,1.86044902,22008.0,22001.0,0.6]
[1674247057145,0.12711,22004.0,22003.0,0.4811]
[1674247057396,0.12711,22004.0,21997.0,0.75]
[1674247057397,1.704378,22004.0,22002.0,0.6]
[1674247057649,1.704378,22004.0,21997.0,0.15]
[1674247057650,0.270686,22003.0,21998.0,0.75]
[1674247057906,1.87375099,22004.0,21999.0,0.4811]
[1674247057907,1.41657119,22002.0,21999.0,0.4811]
[1674247058159,0.305436,22001.0,21999.0,0.4811]
[1674247058489,0.90909,22000.0,21999.0,0.4811]
[1674247058674,0.90909,22000.0,21999.0,0.2649681]
[1674247058675,1.218666,22000.0,21999.0,0.2649681]
[1674247058937,1.218666,22000.0,21999.0,0.6]
[1674247059207,0.309846,22000.0,21999.0,0.59972]
[1674247059477,0.454542,22001.0,21999.0,0.59944]
[1674247059774,0.774381,22000.0,21999.0,0.59916]
[1674247060035,0.7792,22000.0,21999.0,0.5986]
[1674247060292,0.7792,22000.0,21999.0,1.0797]
[1674247060545,0.454545,22000.0,21999.0,1.0797]
[1674247060802,0.454545,22000.0,21999.0,0.5986]
[1674247060803,1.11049001,22000.0,21999.0,0.5986]
[1674247061100,0.97222901,22000.0,21999.0,0.48364]
[1674247061370,1.42677401,22000.0,21999.0,0.48364]
[1674247061623,1.58444931,22000.0,21999.0,0.48364]
[1674247061884,1.42677401,22000.0,21999.0,0.48364]
[1674247062134,0.97222901,22000.0,21999.0,0.48364]
[1674247063516,0.96998897,22000.0,21999.0,0.48364]
[1674247063806,1.26998897,22000.0,21999.0,0.48364]
[1674247064065,0.96998897,22000.0,21999.0,0.48364]
[1674247064842,1.42848897,22000.0,21991.0,0.15]
[1674247065098,0.50623918,21999.0,21991.0,0.33502243]
[1674247065357,0.96209418,21998.0,21991.0,0.18502243]
[1674247065606,0.52205318,21997.0,21992.0,0.50264813]
[1674247065865,0.18333718,21996.0,21989.0,0.13893]
[1674247066119,0.18333718,21995.0,21988.0,0.15]
[1674247066457,0.29706,21994.0,21988.0,0.15]
[1674247066631,0.454664,21995.0,21993.0,0.15]
[1674247066905,0.454664,21995.0,21988.0,0.33502243]
[1674247066906,0.32841,21994.0,21988.0,0.33502243]
[1674247067173,1.42620518,21993.0,21981.0,0.6]
[1674247067437,0.4290108,21993.0,21980.0,0.04817498]
[1674247067713,0.12711,21990.0,21980.0,0.18502243]
[1674247067967,1.364442,21987.0,21979.0,0.00350404]
[1674247068220,0.12561,21984.0,21979.0,0.00350404]
[1674247068474,2.055889,21983.0,21968.0,1.98845058]
[1674247068728,0.12561,21981.0,21968.0,1.98845058]
[1674247068986,0.12561,21981.0,21972.0,0.00054836]
[1674247068987,0.910038,21978.0,21972.0,0.00054836]
[1674247069246,0.12561,21976.0,21972.0,0.00054836]
[1674247069504,1.620492,21975.0,21972.0,0.00054836]
[1674247069759,0.12561,21973.0,21972.0,0.00054836]
[1674247070018,1.29961,21973.0,21961.0,0.15]
[1674247070316,0.00025454,21971.0,21961.0,0.15]
[1674247070542,1.820828,21968.0,21961.0,0.15]
[1674247070796,0.331851,21967.0,21962.0,0.09787688]
[1674247071321,0.227012,21966.0,21962.0,0.28289931]
[1674247071328,0.00025454,21971.0,21967.0,0.16008433]
[1674247071567,0.440182,21970.0,21967.0,0.16008433]
[1674247071839,0.910428,21968.0,21967.0,0.16008433]
[1674247072082,0.468345,21968.0,21967.0,0.16008433]